bitfinex/quotes_ETHUSD_20250414
["timestamp","ask_amount","ask_price","bid_price","bid_amount"]
[1744604149769,4.90722,1630.3,1629.9,5.69811]
[1744604149946,4.98346076,1630.4,1630.0,9.81566]
[1744604150147,4.98346076,1630.4,1630.0,4.90783]
[1744604150384,0.07668076,1630.4,1630.1,4.90766]
[1744604150546,15.08831,1630.5,1630.1,5.73246]
[1744604151450,15.08831,1630.5,1630.2,4.90736]
[1744604151777,15.08831,1630.5,1630.3,0.14225144]
[1744604151982,7.1818,1630.5,1630.3,0.14225144]
[1744604152274,7.25846962,1630.5,1630.3,0.14225144]
[1744604152473,12.16497962,1630.5,1630.3,0.14225144]
[1744604152775,13.38147758,1630.5,1630.3,0.14225144]
[1744604152975,4.90677,1630.4,1629.9,5.73304]
[1744604153175,4.98386812,1630.3,1630.0,0.14394127]
[1744604153759,4.98386812,1630.3,1630.0,5.05191127]
[1744604154648,0.7931,1630.2,1630.0,5.05191127]
[1744604154854,0.7931,1630.3,1630.0,6.1302454]
[1744604155479,0.7931,1630.3,1630.0,11.0380554]
[1744604156081,0.7931,1630.3,1630.1,4.90765]
[1744604156281,5.77671824,1630.4,1630.1,4.90765]
[1744604156491,10.68367824,1630.4,1630.2,0.13903224]
[1744604156690,5.77671824,1630.4,1630.0,10.89411413]
[1744604156985,5.77671824,1630.4,1630.1,5.99699141]
[1744604157381,11.31748,1630.5,1630.1,11.72933141]
[1744604157568,11.39415076,1630.5,1630.1,11.72933141]
[1744604158283,16.30081076,1630.5,1630.1,6.82175141]
[1744604158587,4.90686,1630.4,1630.1,6.82175141]
[1744604159386,5.69996,1630.4,1630.1,5.99695141]
[1744604159889,0.07667122,1630.3,1630.1,1.08941141]
[1744604160059,0.07667122,1630.3,1630.2,0.13878984]
[1744604160388,4.98375122,1630.3,1630.2,0.13878984]
[1744604160979,4.98375122,1630.3,1629.9,10.64112]
[1744604161585,4.98375122,1630.3,1629.9,5.73296]
[1744604161787,4.98375122,1630.3,1629.7,0.8248]
[1744604161788,4.90828,1629.9,1629.7,0.8248]
[1744604162083,4.90797,1630.0,1629.6,10.64288]
[1744604162282,9.89228522,1630.1,1629.7,4.90871]
[1744604162591,4.98440522,1630.1,1629.7,9.81748]
[1744604162799,11.38640522,1630.1,1629.8,4.90846]
[1744604162962,11.38640522,1630.1,1629.8,5.8932567]
[1744604163169,6.47869522,1630.1,1629.9,4.90826]
[1744604163367,6.402,1630.1,1629.9,4.90826]
[1744604163567,6.402,1630.1,1629.8,5.8932567]
[1744604163768,11.3097,1630.1,1629.8,0.9847967]
[1744604164268,11.3097,1630.1,1629.7,4.90882]
[1744604164478,11.3097,1630.1,1629.7,9.81752]
[1744604164895,11.38638948,1630.1,1629.7,9.81752]
[1744604166000,11.38638948,1630.1,1629.7,9.8174]
[1744604166177,11.38638948,1630.1,1629.7,4.9087]
[1744604166373,0.8307,1630.0,1629.6,5.73391]
[1744604166577,0.07669755,1629.9,1629.6,5.73391]
[1744604166998,5.66499,1629.8,1629.5,0.981867]
[1744604167198,0.07670562,1629.7,1629.4,4.90968]
[1744604167563,4.90923,1629.6,1629.3,5.72234]
[1744604168193,9.81867,1629.6,1629.3,0.8124]
[1744604168393,4.90978,1629.4,1629.1,0.02]
[1744604168598,0.7562,1629.2,1629.1,0.02]
[1744604169911,0.7562,1629.2,1629.1,4.93068]
[1744604170108,0.07672715,1629.3,1629.1,5.914712]
[1744604170412,4.90983,1629.4,1629.1,1.004162]
[1744604170617,0.07672406,1629.3,1629.1,1.004162]
[1744604170778,4.98682406,1629.3,1629.1,0.02]
[1744604170979,9.89708406,1629.3,1629.1,0.02]
[1744604171294,5.66658,1629.2,1629.1,0.02]
[1744604172403,0.7562,1629.2,1629.1,0.02]
[1744604172586,5.66658,1629.2,1629.1,0.02]
[1744604173411,7.37222041,1629.2,1629.1,0.02]
[1744604174377,7.44895618,1629.2,1629.1,0.02]
[1744604174996,10.44895618,1629.2,1629.1,0.02]
[1744604176420,10.91408137,1629.2,1629.1,0.02]
[1744604179790,10.44895618,1629.2,1629.1,0.02]
[1744604181826,10.91776659,1629.2,1629.1,0.02]
[1744604185129,17.63776659,1629.2,1629.1,0.02]
[1744604185330,17.56103082,1629.2,1629.1,0.02]
[1744604185534,17.56103082,1629.2,1628.4,0.3957081]
[1744604185535,5.67769,1628.5,1628.4,0.3957081]
[1744604185699,13.21946597,1628.5,1628.4,0.52626172]
[1744604185895,13.14269,1628.5,1628.4,0.3957081]
[1744604186127,13.14269,1628.5,1628.4,0.52929976]
[1744604186504,25.44277613,1628.5,1628.4,0.52929976]
[1744604186712,25.44277613,1628.5,1628.4,0.3957081]
[1744604187321,4.9134,1628.2,1628.1,0.02]
[1744604187537,8.82269412,1628.2,1628.1,0.02]
[1744604187753,4.91532,1627.6,1627.2,0.7574]
[1744604187951,4.99243692,1627.5,1627.3,0.13887841]
[1744604188259,0.07680692,1627.5,1627.3,0.13887841]
[1744604188751,4.99233692,1627.5,1627.3,0.13887841]
[1744604189054,6.407,1627.6,1627.5,4.91551]
[1744604189222,6.48380011,1627.9,1627.6,4.91501]
[1744604189536,12.53806112,1627.9,1627.7,0.14106102]
[1744604189739,12.53806112,1627.9,1627.5,5.6728]
[1744604189944,17.45259112,1627.9,1627.6,0.14162629]
[1744604190131,17.37583101,1627.9,1627.6,0.14162629]
[1744604190342,4.91491,1627.7,1627.6,0.14162629]
[1744604190529,0.56830064,1627.7,1627.3,5.67348]
[1744604190846,4.91523,1627.6,1627.4,0.14275703]
[1744604191048,0.07681064,1627.5,1627.4,0.14275703]
[1744604191341,0.07681059,1627.6,1627.4,0.14275703]
[1744604191542,4.99205059,1627.6,1627.3,0.7574]
[1744604191744,6.03189975,1627.6,1627.4,0.14275703]
[1744604191922,11.77986975,1627.6,1627.1,5.69393]
[1744604192121,11.77986975,1627.6,1627.2,5.06028396]
[1744604192352,4.91582,1627.4,1627.2,0.14403396]
[1744604192549,5.74861,1627.3,1627.1,0.02]
[1744604192875,0.574861,1627.2,1627.1,0.02]
[1744604193043,0.07682196,1627.4,1627.1,4.93661]
[1744604193213,0.07682196,1627.4,1627.1,0.02]
[1744604193214,4.91633,1627.3,1627.1,0.02]
[1744604193416,5.82574295,1627.2,1627.1,0.02]
[1744604193947,0.90932295,1627.2,1627.1,0.02]
[1744604194154,6.40830825,1627.2,1627.1,0.02]
[1744604194350,1.49188825,1627.2,1627.1,0.02]
[1744604194514,6.40830825,1627.2,1627.1,0.02]
[1744604195045,0.65938825,1627.2,1627.1,0.02]
[1744604195249,0.07682295,1627.2,1627.1,0.02]
[1744604195425,4.99324295,1627.2,1627.1,0.02]
[1744604195623,0.07682295,1627.2,1627.1,0.02]
[1744604195819,0.07682721,1627.3,1627.1,4.93662]
[1744604196025,0.07682721,1627.3,1627.1,0.02]
[1744604196217,6.13326993,1627.3,1627.1,0.02]
[1744604196421,0.38450993,1627.3,1627.1,0.02]
[1744604197917,7.91582,1627.4,1627.1,0.02]
[1744604197918,6.47982789,1627.4,1627.2,5.67382]
[1744604198117,6.403,1627.4,1627.3,4.91611]
[1744604198317,6.403,1627.4,1627.2,5.67364]
[1744604198521,6.403,1627.4,1627.2,5.67374]
[1744604198718,6.403,1627.4,1627.3,4.91611]
[1744604199516,0.07681051,1627.7,1627.6,0.7574]
[1744604199825,6.403,1627.8,1627.7,4.91491]
[1744604200368,11.31672,1628.1,1627.6,5.67253]
[1744604200518,0.07678938,1628.0,1627.7,4.91479]
[1744604200721,4.99082938,1628.0,1627.6,5.67254]
[1744604201022,0.07678938,1628.0,1627.7,4.9149]
[1744604201430,0.07678938,1628.0,1627.8,4.91457]
[1744604201752,0.07678938,1628.0,1627.7,4.9149]
[1744604202358,0.07678938,1628.0,1627.7,4.9148]
[1744604202858,0.07678938,1628.0,1627.7,9.8296]
[1744604203159,6.4797894,1628.1,1627.9,4.91429]
[1744604203339,6.403,1628.1,1627.9,4.91429]
[1744604203648,6.403,1628.1,1627.9,5.67169]
[1744604203861,0.07678279,1628.0,1627.7,5.6723]
[1744604204831,0.07678279,1628.0,1627.7,10.5871]
[1744604205154,1.21613207,1628.0,1627.7,0.7574]
[1744604205345,4.91482,1627.8,1627.5,0.7574]
[1744604205652,0.07680354,1627.7,1627.5,0.7574]
[1744604205860,0.07680354,1627.7,1627.6,4.91521]
[1744604206153,0.07680354,1627.9,1627.5,0.78839976]
[1744604206355,11.31686,1628.1,1627.9,4.9143]
[1744604206356,0.07679457,1628.0,1627.9,4.9143]
[1744604206553,6.47978749,1628.1,1627.9,4.9143]
[1744604206758,6.47978749,1628.1,1627.8,5.672]
[1744604207056,6.47978749,1628.1,1627.8,0.7574]
[1744604207223,4.91413,1628.0,1627.6,4.91513]
[1744604207424,0.07678992,1627.9,1627.6,5.67253]
[1744604207743,0.07678992,1627.9,1627.6,10.58753]
[1744604207950,4.99120992,1627.9,1627.6,0.7574]
[1744604208153,4.99120992,1627.9,1627.4,3.13008613]
[1744604208154,4.91491,1627.7,1627.4,0.7574]
[1744604208362,4.91483,1627.8,1627.4,5.67307]
[1744604208542,6.32270191,1627.9,1627.4,5.67307]
[1744604208543,0.07680309,1627.7,1627.4,5.67307]
[1744604208735,0.70907328,1627.8,1627.5,4.91539]
[1744604209731,0.07680309,1627.8,1627.5,4.91539]
[1744604209939,0.07680309,1627.8,1627.6,4.91518]
[1744604210136,0.57588941,1627.9,1627.6,9.83022]
[1744604210343,6.47979679,1628.0,1627.7,4.9149]
[1744604211074,6.403,1628.0,1627.9,4.9143]
[1744604211248,0.07679036,1628.1,1627.9,9.82848]
[1744604211426,6.47978463,1628.2,1627.9,4.91418]
[1744604211632,0.07678463,1628.2,1628.0,4.91385]
[1744604211837,6.4797794,1628.4,1628.1,4.9137]
[1744604212071,0.64797794,1628.3,1628.1,4.9137]
[1744604212657,0.64797794,1628.3,1628.0,5.69685]
[1744604212974,0.64797794,1628.3,1628.0,10.61069]
[1744604213146,11.3925894,1628.4,1628.0,10.61069]
[1744604214239,11.3925894,1628.4,1628.0,5.69684]
[1744604214936,4.91326,1628.3,1628.0,0.783]
[1744604215136,4.99029294,1628.2,1627.8,5.6976]
[1744604215342,0.07677294,1628.2,1627.9,4.91421]
[1744604215542,0.57577623,1628.2,1627.9,4.91421]
[1744604217072,0.07677294,1628.2,1627.9,4.91415]
[1744604217274,0.07678084,1628.3,1628.0,4.9139]
[1744604217462,0.07678084,1628.3,1628.0,9.82777]
[1744604218064,0.07678084,1628.3,1628.0,4.91387]
[1744604218641,0.07678084,1628.3,1627.9,4.91429]
[1744604218836,6.62052292,1628.3,1627.9,4.91429]
[1744604219442,11.53390292,1628.3,1627.8,10.61202]
[1744604220287,11.53390292,1628.3,1627.9,4.91429]
[1744604220442,6.62052292,1628.3,1627.9,4.91415]
[1744604220844,4.91342,1628.2,1627.8,5.69759]
[1744604221043,0.7827,1628.2,1627.8,5.69747]
[1744604221270,0.07678084,1628.3,1628.1,5.69652]
[1744604221476,6.402,1628.5,1628.3,4.9129]
[1744604221685,59.099,1628.6,1628.3,9.82587]
[1744604221971,6.402,1628.6,1628.5,0.783]
[1744604222178,11.39110343,1628.6,1628.3,0.783]
[1744604222349,4.91296,1628.4,1628.1,0.783]
[1744604222553,4.98972745,1628.4,1628.1,0.783]
[1744604223490,4.98972745,1628.4,1628.1,5.69668]
[1744604224278,4.91296,1628.4,1628.1,5.69668]
[1744604224587,4.91296,1628.4,1628.1,0.783]
[1744604225550,0.07676743,1628.5,1628.1,0.783]
[1744604225750,7.61787774,1628.6,1628.3,4.91291]
[1744604225958,5.67439777,1628.5,1628.1,5.69669]
[1744604226279,5.7511616,1628.5,1628.1,5.69669]
[1744604226446,4.91313,1628.3,1628.1,0.783]
[1744604226645,4.91283,1628.4,1628.1,0.783]
[1744604227187,4.98926383,1628.5,1628.2,4.91339]
[1744604227351,4.9125,1628.5,1628.2,4.91339]
[1744604228487,4.9125,1628.5,1628.1,10.61011]
[1744604228654,1.81334008,1628.5,1628.1,0.783]
[1744604228854,5.73032,1628.4,1628.0,10.59875]
[1744604229175,5.73032,1628.4,1628.0,5.68479]
[1744604229364,4.91315,1628.3,1628.0,0.7709]
[1744604229566,4.91441,1627.9,1627.5,5.6863]
[1744604229782,0.07678925,1628.1,1627.8,5.6855]
[1744604230079,0.8174,1628.1,1627.6,3.13008613]
[1744604230407,5.7311,1628.1,1627.8,4.91459]
[1744604230682,5.7312,1628.1,1627.8,4.91459]
[1744604230980,10.6451,1628.1,1627.7,4.91491]
[1744604231767,10.72193042,1628.1,1627.7,4.91491]
[1744604232783,5.80798042,1628.1,1627.7,9.82969]
[1744604232983,5.80798042,1628.1,1627.8,4.9146]
[1744604233154,10.72187042,1628.1,1627.7,5.952788]
[1744604233883,10.72190042,1628.1,1627.7,5.952788]
[1744604234082,5.80798042,1628.1,1627.7,5.952788]
[1744604234283,4.914,1628.0,1627.7,4.91478]
[1744604234654,7.51961946,1628.1,1627.7,4.91478]
[1744604234854,7.51961946,1628.1,1627.7,4.91475]
[1744604235055,11.30841,1628.2,1627.8,5.6853]
[1744604235261,16.2988023,1628.2,1627.8,5.6853]
[1744604235451,16.22202,1628.2,1627.8,5.6853]
[1744604235674,4.99051229,1628.1,1627.8,5.6853]
[1744604238288,11.30841,1628.2,1627.8,5.71627518]
[1744604238466,12.64381409,1628.2,1627.8,5.71627518]
[1744604238867,12.64381409,1628.2,1627.9,4.9143]
[1744604239356,6.47178217,1628.2,1627.9,4.91419]
[1744604239572,0.07678098,1628.4,1628.1,4.91342]
[1744604239785,7.3009699,1628.5,1628.2,4.91328]
[1744604239989,6.4727699,1628.5,1628.2,4.91328]
[1744604241661,11.3852799,1628.5,1628.2,4.91328]
[1744604241982,17.5302395,1628.5,1628.2,4.91328]
[1744604242291,17.4534696,1628.5,1628.2,4.91328]
[1744604243186,6.396,1628.5,1628.2,9.82652]
[1744604244397,6.396,1628.5,1628.2,4.91324]
[1744604245058,4.91163,1628.8,1628.4,0.7593]
[1744604245263,12.13462,1628.9,1628.5,9.85567849]
[1744604245463,18.75832139,1628.9,1628.5,4.91238]
[1744604246326,4.91161,1628.8,1628.5,4.91238]
[1744604247008,13.84686139,1628.9,1628.5,4.91238]
[1744604247497,13.84686139,1628.9,1628.6,4.91211]
[1744604247797,11.30573,1629.1,1628.8,4.91155]
[1744604248003,6.395,1629.1,1628.8,4.91155]
[1744604248296,6.395,1629.1,1628.8,4.91147]
[1744604248491,58.41833,1629.3,1628.9,4.9419874]
[1744604248712,6.395,1629.4,1629.0,5.43602007]
[1744604249017,6.395,1629.4,1629.1,9.82115]
[1744604249442,6.395,1629.4,1629.1,4.91057]
[1744604250006,6.395,1629.4,1629.2,0.7593]
[1744604250207,4.90919,1629.6,1629.2,11.14681]
[1744604250423,4.98590313,1629.6,1629.2,11.14681]
[1744604250616,4.90919,1629.6,1629.2,11.14681]
[1744604250840,4.91068,1629.1,1628.8,0.7593]
[1744604251111,9.89891689,1629.0,1628.6,5.67146]
[1744604251293,4.98771689,1629.0,1628.6,10.58347]
[1744604251480,0.07673813,1629.1,1628.6,3.7593]
[1744604251685,12.20931813,1629.2,1628.9,4.91128]
[1744604251993,10.64915,1629.2,1628.8,4.91132]
[1744604252206,5.73858,1629.2,1628.8,0.55]
[1744604252419,5.73858,1629.2,1628.8,5.46148]
[1744604252709,10.6492,1629.2,1628.8,5.46148]
[1744604252933,5.73858,1629.2,1628.8,5.46148]
[1744604253086,10.64918,1629.2,1628.8,5.46148]
[1744604253285,4.91075,1629.1,1628.7,5.2878]
[1744604253489,9.82163,1629.1,1628.7,4.91187]
[1744604254410,4.91075,1629.1,1628.7,9.82364]
[1744604254631,12.42957681,1629.2,1628.8,4.91145]
[1744604255694,7.51906681,1629.2,1628.8,4.91145]
[1744604255923,0.8179,1628.8,1628.2,6.9548]
[1744604256125,5.72956,1628.8,1628.4,4.91265]
[1744604256290,5.72956,1628.8,1628.5,4.91244]
[1744604256720,0.8179,1628.8,1628.5,4.91244]
[1744604257348,10.64147,1628.8,1628.4,4.91263]
[1744604257638,4.91197,1628.7,1628.4,4.91263]
[1744604257797,4.91197,1628.7,1628.4,6.019747]
[1744604258659,4.91197,1628.7,1628.3,4.91306]
[1744604259445,0.89464739,1628.8,1628.3,4.91306]
[1744604259446,5.80625739,1628.8,1628.3,0.55]
[1744604259596,5.80625739,1628.8,1628.4,9.82534]
[1744604259943,5.80625739,1628.8,1628.4,4.91265]
[1744604260152,4.91216,1628.7,1628.3,5.46308]
[1744604260460,4.91219,1628.6,1628.3,5.46308]
[1744604260647,4.98894262,1628.6,1628.2,0.7948]
[1744604260944,5.73051,1628.5,1628.2,4.91338]
[1744604261134,0.8179,1628.5,1628.2,4.91338]
[1744604261618,0.8179,1628.5,1628.2,4.9441725]
[1744604262017,0.8179,1628.5,1628.2,4.91324]
[1744604262718,0.8179,1628.5,1628.2,4.94416253]
[1744604262896,12.11782,1628.7,1628.3,5.40738625]
[1744604263095,12.11782,1628.7,1628.3,9.82595]
[1744604263935,6.388,1628.7,1628.4,5.73831124]
[1744604264104,6.388,1628.7,1628.5,4.91229]
[1744604264305,6.388,1628.7,1628.4,0.7948]
[1744604264527,6.388,1628.7,1628.5,4.91247]
[1744604267531,6.388,1628.7,1628.4,5.70745]
[1744604267855,7.52565693,1628.7,1628.3,4.91309]
[1744604268065,6.388,1628.7,1628.4,4.91252]
[1744604268368,6.388,1628.7,1628.5,4.91232]
[1744604268578,0.89464628,1628.9,1628.1,3.7639]
[1744604268727,4.91261,1628.5,1628.2,3.0]
[1744604268927,4.9893725,1628.5,1628.2,3.0]
[1744604269234,4.91261,1628.5,1628.2,3.0]
[1744604269535,4.91251,1628.5,1628.1,5.67749]
[1744604269726,9.82521,1628.5,1628.1,5.67749]
[1744604269926,4.91251,1628.5,1628.1,5.67749]
[1744604270128,4.91313,1628.3,1628.0,4.91396]
[1744604270354,4.99043831,1628.2,1627.8,4.91457]
[1744604270654,16.29201831,1628.2,1627.8,4.91457]
[1744604270958,11.30158,1628.2,1627.8,4.91457]
[1744604271126,11.37835903,1628.2,1627.8,4.91457]
[1744604273564,11.37835903,1628.2,1627.8,4.91444]
[1744604273858,0.8014,1628.5,1628.2,4.91317]
[1744604274059,0.07676303,1628.5,1628.3,4.91293]
[1744604274364,0.07676303,1628.5,1628.2,9.82661]
[1744604275175,4.91256,1628.5,1628.2,4.91324]
[1744604275481,0.07676911,1628.5,1628.2,4.91324]
[1744604275634,11.37715435,1628.6,1628.3,4.91309]
[1744604275833,13.08619878,1628.6,1628.3,4.91309]
[1744604276070,13.00943443,1628.6,1628.3,4.91309]
[1744604276283,6.388,1628.6,1628.4,4.91276]
[1744604276446,6.388,1628.6,1628.4,9.82543]
[1744604276634,6.388,1628.6,1628.5,4.91249]
[1744604277288,6.388,1628.6,1628.4,4.91267]
[1744604277442,6.388,1628.6,1628.3,5.74197]
[1744604277775,6.388,1628.6,1628.3,4.91307]
[1744604278084,6.46475834,1628.6,1628.3,4.91307]
[1744604278243,6.46475834,1628.6,1628.3,4.91297]
[1744604278442,6.388,1628.6,1628.4,4.91268]
[1744604278973,6.388,1628.6,1628.4,4.91266]
[1744604279185,6.388,1628.6,1628.4,6.232816]
[1744604279487,6.388,1628.6,1628.5,4.91249]
[1744604279684,6.388,1628.6,1628.4,6.232816]
[1744604279902,6.388,1628.6,1628.4,11.145446]
[1744604280386,0.8014,1628.9,1628.6,4.91216]
[1744604280607,6.389,1628.8,1628.6,4.91208]
[1744604281016,6.389,1628.8,1628.7,4.91189]
[1744604283812,4.98789462,1629.0,1628.6,4.91208]
[1744604284012,4.98789462,1629.0,1628.6,4.91203]
[1744604284708,4.98789462,1629.0,1628.6,9.82412]
[1744604284917,0.7618,1628.9,1628.2,0.8203]
[1744604285132,9.82404,1628.7,1628.3,4.91281]
[1744604285415,0.7618,1628.5,1628.2,9.82662]
[1744604285611,0.7618,1628.5,1628.3,4.91308]
[1744604285800,0.83855934,1628.7,1628.5,4.91248]
[1744604286001,7.22155934,1628.7,1628.4,4.91279]
[1744604288016,12.13364934,1628.7,1628.3,5.73336]
[1744604288212,18.75026627,1628.7,1628.3,5.73336]
[1744604288420,18.67350693,1628.7,1628.3,5.73336]
[1744604288713,4.9122,1628.6,1628.2,9.82672]
[1744604289826,13.76139693,1628.7,1628.1,0.7975]
[1744604289827,8.84930693,1628.7,1628.1,5.7111]
[1744604290125,5.6918,1628.5,1628.0,9.82788]
[1744604290326,0.85587114,1628.5,1628.3,4.91309]
[1744604290526,7.1621,1628.7,1628.5,4.91248]
[1744604290976,0.07675389,1628.8,1628.5,5.70988]
[1744604291178,7.1621,1628.9,1628.6,9.82412]
[1744604291378,7.1621,1628.9,1628.5,0.7975]
[1744604291379,8.44616327,1628.9,1628.7,4.91183]
[1744604291618,6.383,1629.0,1628.8,4.91159]
[1744604291776,6.45974427,1629.0,1628.6,0.55]
[1744604291976,6.383,1629.0,1628.8,4.91137]
[1744604292173,7.23883908,1629.1,1628.9,4.91116]
[1744604292526,7.23883908,1629.1,1628.8,4.91137]
[1744604292735,7.23883908,1629.1,1628.8,9.82286]
[1744604293026,0.85583908,1629.1,1628.8,9.82286]
[1744604293177,7.23883908,1629.1,1628.9,4.91125]
[1744604294178,6.383,1629.1,1628.9,4.91111]
[1744604294787,6.383,1629.1,1629.0,4.91098]
[1744604295027,59.055,1629.3,1629.1,4.91068]
[1744604295182,59.055,1629.3,1629.2,4.91038]
[1744604295377,6.383,1629.3,1629.2,4.91038]
[1744604297042,6.383,1629.3,1629.1,4.91068]
[1744604297246,6.383,1629.3,1629.1,9.82124]
[1744604297430,6.383,1629.3,1629.2,4.91038]
[1744604297945,10.23781959,1629.6,1629.2,9.82076]
[1744604298164,10.23781959,1629.6,1629.3,4.90999]
[1744604298380,0.7791,1629.8,1629.2,9.73764326]
[1744604298675,12.14622804,1629.9,1629.4,5.70725]
[1744604298831,4.90859,1629.8,1629.4,5.70725]
[1744604299029,4.90859,1629.8,1629.4,4.90975]
[1744604299030,4.98560579,1629.7,1629.4,4.90975]
[1744604299413,5.68878,1629.6,1629.2,5.70777]
[1744604299673,6.18734058,1629.6,1629.2,4.91027]
[1744604299827,6.18734058,1629.6,1629.2,9.82047]
[1744604300028,0.07671302,1629.5,1629.1,4.91066]
[1744604300230,4.91011,1629.3,1628.9,4.91126]
[1744604300467,4.98724521,1629.2,1628.8,4.91157]
[1744604300668,0.7796,1629.1,1628.8,4.91157]
[1744604300838,0.7796,1629.1,1628.8,4.91139]
[1744604301729,5.69041,1629.1,1628.7,5.66548]
[1744604301971,0.0767385,1629.0,1628.7,5.66537]
[1744604302154,0.7796,1629.1,1628.7,5.66537]
[1744604302352,0.7796,1629.1,1628.8,4.94231236]
[1744604302664,0.85633435,1629.3,1629.0,4.91085]
[1744604303172,4.91049,1629.2,1628.7,5.66547]
[1744604303381,0.7796,1629.0,1628.7,4.91171]
[1744604303738,0.7796,1629.0,1628.7,4.94260178]
[1744604303948,0.7796,1629.0,1628.7,9.85431178]
[1744604304255,0.7796,1629.0,1628.8,4.91159]
[1744604304974,0.491049,1629.1,1628.8,4.91144]
[1744604305287,0.56778486,1629.1,1628.8,4.91144]
[1744604305497,0.491049,1629.1,1628.8,4.91144]
[1744604306900,0.491049,1629.1,1628.7,4.91186]
[1744604307188,5.401889,1629.1,1628.7,4.91186]
[1744604307388,0.07673628,1629.0,1628.7,4.91175]
[1744604307555,0.07673628,1629.0,1628.7,9.82351]
[1744604307755,11.85962958,1629.1,1628.8,4.91151]
[1744604308098,6.381,1629.1,1628.9,4.91103]
[1744604308801,0.07673588,1629.3,1628.9,5.46128]
[1744604309007,0.85632211,1629.6,1629.4,4.90961]
[1744604309302,6.381,1629.7,1629.3,5.66365]
[1744604309303,11.3666919,1629.7,1629.3,5.66365]
[1744604309596,17.98131609,1629.7,1629.3,5.66365]
[1744604309754,17.90460419,1629.7,1629.3,4.91005]
[1744604309950,12.99548419,1629.7,1629.3,9.82002]
[1744604310169,11.36668725,1629.7,1629.3,9.81988]
[1744604310797,11.36668725,1629.7,1629.2,4.91022]
[1744604311000,11.36668725,1629.7,1629.3,4.90988]
[1744604311359,11.36668725,1629.7,1629.3,9.81983]
[1744604311663,16.27574725,1629.7,1629.3,4.90988]
[1744604311884,4.90919,1629.6,1629.2,9.8206]
[1744604312179,4.90919,1629.6,1629.3,4.91007]
[1744604312710,11.28998,1629.7,1629.3,4.91007]
[1744604312994,0.07671145,1629.6,1629.3,4.91007]
[1744604313598,0.07671145,1629.6,1629.3,9.81998]
[1744604313801,6.45771146,1629.7,1629.4,4.90977]
[1744604314003,0.07671146,1629.7,1629.4,0.981968]
[1744604314153,6.375,1629.9,1629.6,4.9089]
[1744604314358,6.375,1629.9,1629.7,4.90876]
[1744604314607,53.4952,1630.0,1629.8,4.90846]
[1744604314608,0.8302,1630.0,1629.8,4.90846]
[1744604315102,7.2052,1630.2,1629.9,4.90799]
[1744604315896,7.2052,1630.2,1629.9,9.81609]
[1744604316198,6.375,1630.2,1630.1,4.90767]
[1744604317597,0.02,1630.4,1630.3,4.90707]
[1744604317900,0.02,1630.4,1630.2,4.90722]
[1744604318585,0.02,1630.4,1630.2,4.93795049]
[1744604318790,0.02,1630.4,1630.3,4.90707]
[1744604319434,0.02,1630.4,1630.3,6.438497]
[1744604319596,0.02,1630.4,1630.3,7.195997]
[1744604321329,0.02,1630.4,1630.1,4.90753]
[1744604321590,0.02,1630.4,1630.3,4.90707]
[1744604321805,0.02,1630.4,1630.3,5.66457]
[1744604321988,0.02,1630.4,1630.3,6.21457]
[1744604324825,0.02,1630.4,1630.3,4.90707]
[1744604325030,0.02,1630.4,1630.3,6.504493]
[1744604325224,0.02,1630.4,1630.3,4.90707]
[1744604328363,0.02,1630.4,1630.3,5.45707]
[1744604331548,0.02,1630.4,1630.3,6.21457]
[1744604331756,0.02,1630.4,1630.3,5.66457]
[1744604331928,0.02,1630.4,1630.3,6.21457]
[1744604332130,0.02,1630.4,1630.3,7.942743]
[1744604334650,0.02,1630.4,1630.3,17.102743]
[1744604335149,0.02,1630.4,1630.3,20.23808646]
[1744604351581,0.02,1630.4,1630.3,21.12496899]
[1744604351785,0.02,1630.4,1630.3,24.26031245]
[1744604352098,0.02,1630.4,1630.3,21.12496899]
[1744604358825,0.02,1630.4,1630.3,18.12496899]
[1744604358985,0.02,1630.4,1630.3,21.12496899]
[1744604372657,0.8147,1630.9,1630.8,5.45556]
[1744604372841,0.8147,1630.9,1630.8,6.491689]
[1744604373039,0.7717,1631.2,1631.0,9.80967]
[1744604373354,0.7717,1631.2,1631.0,4.90483]
[1744604374814,0.7717,1631.2,1631.0,0.55]
[1744604375355,0.7898,1631.0,1630.8,5.941659]
[1744604375953,0.7898,1631.0,1630.8,10.847189]
[1744604376155,0.7898,1631.0,1630.9,5.9899789]
[1744604376721,0.7898,1631.0,1630.9,6.5399789]
[1744604378256,0.7898,1631.0,1630.9,9.67532236]
[1744604378465,0.7898,1631.2,1631.1,10.35932]
[1744604378668,0.7898,1631.2,1631.1,4.90466]
[1744604378865,0.7898,1631.2,1631.1,0.490466]
[1744604379363,0.7898,1631.2,1631.1,5.42578902]
[1744604379563,0.7898,1631.2,1631.1,5.395126]
[1744604380265,0.7898,1631.2,1631.1,5.42578955]
[1744604381037,0.7898,1631.2,1631.1,5.97578955]
[1744604381231,0.7898,1631.2,1631.1,5.945126]
[1744604382160,0.7898,1631.2,1631.1,5.395126]
[1744604388183,0.7898,1631.2,1631.1,5.945126]
[1744604390187,0.7898,1631.2,1631.1,4.90466]
[1744604392988,0.7898,1631.2,1631.0,4.90481]
[1744604393476,0.7898,1631.2,1630.9,5.9899389]
[1744604393846,0.7898,1631.2,1630.9,10.8950489]
[1744604394256,0.7898,1631.2,1630.9,9.81033]
[1744604394458,0.7898,1631.2,1630.8,11.06553]
[1744604394459,0.7708,1631.1,1630.8,11.06553]
[1744604395666,0.7708,1631.1,1630.8,15.971]
[1744604395888,0.7708,1631.1,1630.8,11.06547]
[1744604396296,0.7708,1631.1,1630.9,4.90526]
[1744604400590,0.7708,1631.1,1630.9,9.81041]
[1744604400958,0.7708,1631.1,1630.9,4.90515]